bitfinex/quotes_BTCUSD_20241002
["timestamp","ask_amount","ask_price","bid_price","bid_amount"]
[1727903658147,0.04271537,60863.0,60862.0,0.263524]
[1727903658362,0.02576073,60863.0,60862.0,0.26538541]
[1727903658573,0.02576073,60863.0,60862.0,0.26680969]
[1727903659444,0.02576073,60863.0,60862.0,0.277524]
[1727903659861,0.02576073,60863.0,60862.0,0.263524]
[1727903660078,0.02576073,60863.0,60862.0,0.42671071]
[1727903660290,0.02576073,60863.0,60862.0,0.44071071]
[1727903660502,0.24623062,60877.0,60876.0,0.164268]
[1727903660740,0.26314634,60877.0,60876.0,0.164268]
[1727903661154,0.01691572,60877.0,60876.0,0.164268]
[1727903663134,0.01691572,60877.0,60876.0,0.178268]
[1727903663351,0.01691572,60877.0,60876.0,0.014]
[1727903664016,0.01691572,60877.0,60875.0,0.164269]
[1727903664229,0.01691572,60876.0,60874.0,0.164273]
[1727903664439,0.164263,60878.0,60875.0,0.164271]
[1727903664674,0.18282294,60877.0,60871.0,0.351561]
[1727903664885,0.01691994,60876.0,60871.0,0.023]
[1727903665093,0.001636,60877.0,60875.0,0.164271]
[1727903665311,0.01692001,60876.0,60875.0,0.164271]
[1727903665523,0.01692001,60876.0,60872.0,0.328554]
[1727903665731,0.001636,60877.0,60875.0,0.164271]
[1727903665950,0.001636,60877.0,60876.0,0.013]
[1727903666155,0.01854904,60877.0,60876.0,0.013]
[1727903666579,0.01854904,60877.0,60874.0,0.164272]
[1727903666580,0.18281504,60877.0,60874.0,0.164272]
[1727903666791,0.01691304,60876.0,60874.0,0.164272]
[1727903667006,0.01691304,60875.0,60874.0,0.164272]
[1727903667134,0.01691304,60875.0,60873.0,0.164276]
[1727903667357,0.01691304,60874.0,60873.0,0.164276]
[1727903668416,0.001636,60877.0,60871.0,0.351562]
[1727903668621,0.001636,60877.0,60873.0,0.328552]
[1727903668827,0.001636,60877.0,60875.0,0.16427]
[1727903669023,0.001636,60877.0,60873.0,0.328552]
[1727903669303,0.001636,60877.0,60875.0,0.16427]
[1727903669907,0.001636,60877.0,60875.0,0.17827]
[1727903670424,0.001636,60877.0,60875.0,0.16427]
[1727903670764,0.001636,60877.0,60875.0,0.17827]
[1727903671796,0.165902,60877.0,60875.0,0.014]
[1727903672004,0.001636,60877.0,60875.0,0.014]
[1727903672432,0.165902,60877.0,60875.0,0.014]
[1727903672642,0.165902,60877.0,60874.0,0.164273]
[1727903673077,0.165902,60877.0,60875.0,0.014]
[1727903673720,0.165902,60877.0,60874.0,0.164273]
[1727903673925,0.001636,60877.0,60874.0,0.178273]
[1727903674600,0.001636,60877.0,60874.0,0.014]
[1727903674822,0.164271,60875.0,60874.0,0.014]
[1727903675735,0.18116987,60875.0,60874.0,0.014]
[1727903675960,0.164298,60865.0,60864.0,0.24623062]
[1727903676178,0.18119687,60865.0,60864.0,0.24623062]
[1727903676617,0.164303,60863.0,60862.0,0.000818]
[1727903677079,0.21349457,60863.0,60862.0,0.000818]
[1727903677287,0.164303,60863.0,60862.0,0.000818]
[1727903677502,0.23809036,60863.0,60862.0,0.000818]
[1727903677719,0.164303,60863.0,60862.0,0.009818]
[1727903677932,0.36268614,60863.0,60862.0,0.009818]
[1727903678162,0.3873011,60863.0,60862.0,0.009818]
[1727903678379,0.264303,60863.0,60862.0,0.009818]
[1727903679302,0.375473,60863.0,60862.0,0.000818]
[1727903679515,0.42567311,60863.0,60862.0,0.002818]
[1727903679724,0.42367311,60863.0,60862.0,0.002818]
[1727903680181,0.42367311,60863.0,60862.0,0.000818]
[1727903680407,0.42367311,60863.0,60856.0,0.24704862]
[1727903680408,0.266319,60857.0,60856.0,0.24704862]
[1727903680647,0.510329,60857.0,60856.0,0.000818]
[1727903680851,0.264338,60850.0,60849.0,0.000817]
[1727903681278,0.266338,60850.0,60849.0,0.000817]
[1727903681490,0.784327,60850.0,60849.0,0.000817]
[1727903681705,0.28329178,60850.0,60849.0,0.000817]
[1727903681923,0.40612505,60850.0,60849.0,0.000817]
[1727903682133,0.69663005,60850.0,60849.0,0.000817]
[1727903682358,0.67200289,60850.0,60849.0,0.000817]
[1727903682573,0.59956773,60850.0,60849.0,0.000817]
[1727903682787,0.59756773,60850.0,60849.0,0.000817]
[1727903683000,0.59756773,60850.0,60849.0,0.003817]
[1727903683001,0.40526884,60850.0,60849.0,0.003817]
[1727903683184,0.35614276,60850.0,60849.0,0.003817]
[1727903683422,0.30706273,60850.0,60849.0,0.000817]
[1727903683647,0.30706273,60850.0,60849.0,0.002817]
[1727903683648,0.35612958,60850.0,60849.0,0.002817]
[1727903683863,0.20704955,60850.0,60849.0,0.002817]
[1727903684081,0.04271155,60850.0,60849.0,0.002817]
[1727903685223,0.04271155,60850.0,60849.0,0.000817]
[1727903685429,0.04271155,60850.0,60849.0,0.011817]
[1727903686056,0.04271155,60850.0,60849.0,0.000817]
[1727903686242,0.04271155,60850.0,60849.0,0.177158]
[1727903687534,0.02577095,60850.0,60849.0,0.177158]
[1727903687748,0.04266054,60850.0,60849.0,0.177158]
[1727903688399,0.04266054,60850.0,60849.0,0.165158]
[1727903688822,0.04266054,60850.0,60849.0,0.179158]
[1727903689884,0.02577095,60850.0,60849.0,0.179158]
[1727903692285,0.02577095,60850.0,60849.0,0.165158]
[1727903692727,0.02577095,60850.0,60849.0,0.179158]
[1727903693185,0.02577095,60850.0,60849.0,0.165158]
[1727903693850,0.02577095,60850.0,60849.0,0.362558]
[1727903694311,0.24623062,60861.0,60860.0,0.164311]
[1727903694527,0.26316994,60861.0,60858.0,0.164314]
[1727903694740,0.01693932,60860.0,60858.0,0.164314]
[1727903694952,0.01693932,60859.0,60858.0,0.164314]
[1727903695182,0.01693932,60859.0,60839.0,0.25123062]
[1727903695399,0.01693932,60859.0,60849.0,0.014817]
[1727903695400,0.164338,60850.0,60849.0,0.014817]
[1727903695629,0.18127732,60850.0,60849.0,0.014817]
[1727903695839,0.18127732,60850.0,60849.0,0.000817]
[1727903696287,0.20704405,60850.0,60849.0,0.000817]
[1727903697142,0.20698912,60850.0,60849.0,0.000817]
[1727903697594,0.19010473,60850.0,60849.0,0.000817]
[1727903697810,0.206992,60850.0,60849.0,0.000817]
[1727903698457,0.206992,60850.0,60849.0,0.003817]
[1727903698893,0.206992,60850.0,60849.0,0.000817]
[1727903699108,0.206992,60850.0,60849.0,0.007817]
[1727903699316,0.042654,60850.0,60849.0,0.007817]
[1727903699582,0.042654,60850.0,60849.0,0.165158]
[1727903700003,0.042654,60850.0,60849.0,0.000817]
[1727903700686,0.042654,60850.0,60849.0,0.165158]
[1727903700897,0.042654,60850.0,60849.0,0.170158]
[1727903701109,0.042654,60850.0,60849.0,0.005817]
[1727903701385,0.042654,60850.0,60849.0,0.165158]
[1727903701610,0.042654,60850.0,60849.0,0.257358]
[1727903701818,0.02576673,60850.0,60849.0,0.257358]
[1727903702045,0.02576673,60850.0,60849.0,0.248358]
[1727903702529,0.02576673,60850.0,60849.0,0.261358]
[1727903702972,0.04270987,60850.0,60849.0,0.261358]
[1727903703430,0.20704787,60850.0,60849.0,0.013817]
[1727903704309,0.20704787,60850.0,60849.0,0.000817]
[1727903704752,0.20704787,60850.0,60849.0,0.014817]
[1727903705185,0.20704787,60850.0,60849.0,0.000817]
[1727903705398,0.20704787,60850.0,60849.0,0.013817]
[1727903706049,0.20704787,60850.0,60849.0,0.000817]
[1727903706258,0.20704787,60850.0,60849.0,0.005817]
[1727903706259,0.20714311,60850.0,60849.0,0.005817]
[1727903706700,0.20714742,60850.0,60849.0,0.005817]
[1727903707633,0.20714742,60850.0,60849.0,0.000817]
[1727903707843,0.20714742,60850.0,60849.0,0.005817]
[1727903708863,0.28924742,60850.0,60849.0,0.005817]
[1727903710296,0.38924742,60850.0,60849.0,0.005817]
[1727903710518,0.68712781,60850.0,60849.0,0.005817]
[1727903710731,1.67506486,60850.0,60849.0,0.005817]
[1727903710963,0.164343,60848.0,60847.0,0.000817]
[1727903711255,2.11423921,60848.0,60847.0,0.000817]
[1727903711477,2.15969975,60848.0,60847.0,1e-06]
[1727903711742,2.01249984,60848.0,60847.0,1e-06]
[1727903711960,2.01249984,60848.0,60838.0,0.24623062]
[1727903711961,0.166368,60839.0,60838.0,0.24623062]
[1727903712176,0.42989386,60839.0,60838.0,0.24623062]
[1727903712407,0.32969113,60839.0,60838.0,0.24623062]
[1727903712633,0.164387,60832.0,60827.0,0.0778]
[1727903712863,0.164389,60831.0,60825.0,0.000817]
[1727903713080,0.18143169,60831.0,60825.0,0.000817]
[1727903713830,0.17760777,60831.0,60825.0,0.000817]
[1727903714049,0.20338282,60831.0,60825.0,0.000817]
[1727903714694,0.20438282,60831.0,60830.0,0.006817]
[1727903715224,0.20338282,60831.0,60830.0,0.000817]
[1727903715469,0.20338282,60831.0,60830.0,0.006817]
[1727903715762,0.30438282,60831.0,60830.0,0.006817]
[1727903715996,0.28734013,60831.0,60830.0,0.006817]
[1727903716660,0.30440085,60831.0,60830.0,0.006817]
[1727903716875,0.32045321,60831.0,60830.0,0.000817]
[1727903717379,0.32045321,60831.0,60830.0,0.007817]
[1727903717380,0.32145321,60831.0,60830.0,0.007817]
[1727903717870,0.44176861,60831.0,60830.0,0.000817]
[1727903718158,0.30439249,60831.0,60830.0,0.001817]
[1727903718420,0.04382741,60831.0,60830.0,0.001817]
[1727903718673,0.20821641,60831.0,60830.0,0.001817]
[1727903718908,0.20721641,60831.0,60830.0,0.000817]
[1727903719187,0.19016405,60831.0,60830.0,0.000817]
[1727903719493,0.20724739,60831.0,60830.0,0.000817]
[1727903719751,0.04285839,60831.0,60830.0,0.000817]
[1727903720471,0.04285839,60831.0,60830.0,0.165209]
[1727903720748,0.20724739,60831.0,60830.0,0.000817]
[1727903721019,0.20724739,60831.0,60830.0,0.007817]
[1727903721020,0.20824739,60831.0,60830.0,0.007817]
[1727903721540,0.20824739,60831.0,60830.0,0.000817]
[1727903721541,0.30724739,60831.0,60830.0,0.000817]
[1727903721815,0.30824739,60831.0,60830.0,0.009817]
[1727903722339,0.8240001,60831.0,60830.0,0.009817]
[1727903722717,0.8977129,60831.0,60830.0,0.009817]
[1727903722883,0.73452619,60831.0,60830.0,0.009817]
[1727903723162,0.66081339,60831.0,60830.0,0.009817]
[1727903723450,0.73451171,60831.0,60830.0,0.009817]
[1727903723700,0.65981339,60831.0,60830.0,0.000817]
[1727903723957,0.89669866,60831.0,60830.0,0.000817]
[1727903724447,0.8230001,60831.0,60830.0,0.000817]
[1727903724904,0.8300001,60831.0,60830.0,0.001817]
[1727903725143,0.89669866,60831.0,60830.0,0.000817]
[1727903725355,0.92328384,60831.0,60830.0,0.000817]
[1727903725576,0.8290001,60831.0,60830.0,0.001817]
[1727903725798,0.95177489,60831.0,60830.0,0.001817]
[1727903726033,0.93677144,60831.0,60830.0,0.001817]
[1727903726258,0.83104427,60831.0,60830.0,0.001817]
[1727903726515,0.92923714,60831.0,60830.0,0.001817]
[1727903726706,0.92323714,60831.0,60830.0,0.000817]
[1727903727091,0.92123714,60831.0,60830.0,0.000817]
[1727903727322,0.82304427,60831.0,60830.0,0.001817]
[1727903727521,0.82804427,60831.0,60830.0,0.001817]
[1727903727675,0.92623714,60831.0,60830.0,0.001817]
[1727903728104,0.90164647,60831.0,60830.0,0.001817]
[1727903728556,0.89664647,60831.0,60830.0,0.000817]
[1727903728763,0.73345976,60831.0,60830.0,0.000817]
[1727903728980,0.38092211,60831.0,60830.0,0.000817]
[1727903729175,0.90923591,60831.0,60830.0,0.000817]
[1727903729470,0.96794433,60831.0,60830.0,0.000817]
[1727903729682,0.99247911,60831.0,60830.0,0.000817]
[1727903729901,1.08206362,60831.0,60830.0,0.000817]
[1727903730120,1.1556506,60831.0,60830.0,0.000817]
[1727903730395,0.44045191,60831.0,60830.0,0.000817]
[1727903730603,0.30731991,60831.0,60830.0,0.000817]
[1727903730808,0.30731991,60831.0,60830.0,0.001817]
[1727903730809,0.31231991,60831.0,60830.0,0.001817]
[1727903731234,0.36954319,60831.0,60830.0,0.001817]
[1727903731465,0.30731991,60831.0,60830.0,0.000817]
[1727903731673,0.31231991,60831.0,60830.0,0.001817]
[1727903732121,0.30731991,60831.0,60830.0,0.000817]
[1727903732329,0.31228579,60831.0,60830.0,0.001817]
[1727903733583,1.4332845,60831.0,60830.0,0.001817]
[1727903733792,1.2311855,60831.0,60830.0,0.000817]
[1727903734243,2.47059608,60831.0,60830.0,0.000817]
[1727903734452,2.2659684,60831.0,60830.0,0.000817]
[1727903734661,2.2629684,60831.0,60830.0,0.000817]
[1727903735103,2.2050024,60831.0,60830.0,0.001817]
[1727903735340,1.43244627,60831.0,60830.0,0.001817]
[1727903735570,1.42744627,60831.0,60830.0,0.000817]
[1727903735792,1.4830524,60831.0,60830.0,0.000817]
[1727903736009,1.41979157,60831.0,60830.0,0.000817]
[1727903736253,1.57476143,60831.0,60830.0,0.000817]
[1727903736467,1.57476092,60831.0,60830.0,0.000817]
[1727903736909,1.67795379,60831.0,60830.0,0.001817]
[1727903737341,1.57976092,60831.0,60830.0,0.001817]
[1727903737574,1.67795379,60831.0,60830.0,0.001817]
[1727903737799,1.57776092,60831.0,60830.0,0.001817]
[1727903738278,0.164403,60826.0,60825.0,1e-06]
[1727903738489,3.63769816,60826.0,60825.0,1e-06]
[1727903738737,3.63769816,60826.0,60822.0,0.000818]
[1727903738738,0.266411,60823.0,60822.0,0.000818]
[1727903738949,0.266419,60820.0,60819.0,0.000817]
[1727903739203,1.9405725,60820.0,60819.0,0.000817]
[1727903739410,2.06445167,60820.0,60819.0,0.000817]
[1727903739847,0.4291254,60820.0,60819.0,0.000817]
[1727903740056,0.37881568,60820.0,60819.0,0.000817]
[1727903740277,0.28163073,60820.0,60819.0,0.000817]
[1727903740492,0.18163073,60820.0,60819.0,0.000817]
[1727903740925,0.02621173,60820.0,60810.0,0.34336648]
[1727903741139,0.164442,60812.0,60810.0,0.34336648]
[1727903741420,0.01721173,60811.0,60810.0,0.34336648]
[1727903741643,0.18165473,60811.0,60810.0,0.0983]
[1727903741866,0.1816464,60811.0,60810.0,0.0983]
[1727903742729,0.20743005,60811.0,60810.0,0.0983]
[1727903743227,0.20743005,60811.0,60808.0,0.0784]
[1727903743228,0.164449,60809.0,60808.0,0.0784]
[1727903743437,0.0172034,60809.0,60802.0,0.1741]
[1727903743657,0.02578365,60811.0,60802.0,0.1741]
[1727903743658,0.164465,60803.0,60802.0,0.1741]
[1727903743873,0.1816684,60803.0,60802.0,0.1741]
[1727903744313,0.20745422,60803.0,60802.0,0.1741]
[1727903744745,0.20745422,60803.0,60801.0,0.001018]
[1727903744746,0.164468,60802.0,60801.0,0.001018]
[1727903744963,0.1816714,60802.0,60801.0,0.001018]
[1727903745613,0.2817234,60802.0,60801.0,0.001018]
[1727903747419,0.2817234,60802.0,60801.0,0.002018]
[1727903747420,0.2827234,60802.0,60801.0,0.002018]
[1727903748072,0.265468,60802.0,60801.0,0.002018]
[1727903748285,0.28280083,60802.0,60801.0,0.002018]
[1727903748976,0.18280083,60802.0,60801.0,0.002018]
[1727903749232,0.01833283,60802.0,60801.0,0.002018]
[1727903749663,0.18280083,60802.0,60801.0,0.002018]
[1727903749883,0.01833283,60802.0,60801.0,0.002018]
[1727903750102,0.18280083,60802.0,60801.0,0.002018]
[1727903750767,0.28280083,60802.0,60801.0,0.002018]
[1727903752768,0.4125353,60802.0,60801.0,0.002018]
[1727903753016,0.54814583,60802.0,60801.0,0.001018]
[1727903753194,0.41560983,60802.0,60801.0,0.001018]
[1727903753662,0.28180083,60802.0,60801.0,0.001018]
[1727903754133,0.44923848,60802.0,60801.0,0.001018]
[1727903754574,0.44623848,60802.0,60801.0,0.001018]
[1727903754798,0.44823848,60802.0,60801.0,0.001018]
[1727903755477,0.28380083,60802.0,60801.0,0.001018]
[1727903756431,0.28180083,60802.0,60801.0,0.001018]
[1727903756883,0.28939483,60802.0,60801.0,0.001018]
[1727903757104,0.28939483,60802.0,60801.0,0.175418]
[1727903757105,0.02492683,60802.0,60801.0,0.175418]
[1727903757329,0.02392683,60802.0,60801.0,0.339888]
[1727903757555,0.01833283,60802.0,60801.0,0.339888]
[1727903757775,0.001,60802.0,60801.0,0.362888]
[1727903758001,0.57509362,60816.0,60802.0,0.023]
[1727903758250,0.57509362,60816.0,60815.0,0.0957]
[1727903758251,0.24623062,60816.0,60815.0,0.0957]
[1727903758725,0.328849,60819.0,60815.0,0.0957]
[1727903758726,0.164427,60818.0,60815.0,0.0957]
[1727903758947,0.02578127,60816.0,60815.0,0.0957]
[1727903759840,0.19021127,60816.0,60815.0,0.0957]
[1727903760072,0.02578127,60816.0,60815.0,0.260133]
[1727903760286,0.02678127,60816.0,60815.0,0.262133]
[1727903761166,0.02678127,60816.0,60815.0,0.0977]
[1727903761384,0.19121127,60816.0,60815.0,0.002]
[1727903762918,0.02578127,60816.0,60808.0,0.24623062]
[1727903763135,0.164449,60809.0,60808.0,0.24623062]
[1727903763369,0.164449,60809.0,60794.0,0.57520562]
[1727903763370,0.164449,60809.0,60800.0,4e-05]
[1727903763372,0.3289,60809.0,60800.0,4e-05]
[1727903763578,0.164468,60802.0,60800.0,0.07544]
[1727903764019,0.02578409,60808.0,60801.0,0.001018]
[1727903764265,0.164466,60803.0,60801.0,0.001018]
[1727903764476,0.328917,60806.0,60801.0,0.001018]
[1727903764735,0.02578409,60808.0,60801.0,0.001018]
[1727903764736,0.164468,60802.0,60801.0,0.001018]
[1727903764947,0.165468,60802.0,60801.0,0.003018]
[1727903765704,0.001,60802.0,60801.0,0.003018]
[1727903766272,0.164463,60804.0,60801.0,0.001018]
[1727903766552,0.328912,60807.0,60801.0,0.003018]
[1727903766553,0.164468,60802.0,60801.0,0.003018]
[1727903766844,0.164468,60802.0,60801.0,0.001018]
[1727903767081,0.165468,60802.0,60801.0,0.003018]
[1727903767630,0.164468,60802.0,60801.0,0.001018]
[1727903767882,0.04922287,60805.0,60802.0,0.258266]
[1727903768148,0.23829131,60806.0,60802.0,0.258267]
[1727903768149,0.164458,60806.0,60802.0,0.258267]
[1727903768664,0.35468809,60808.0,60802.0,0.258267]
[1727903768665,0.07500696,60808.0,60802.0,0.0938]
[1727903768915,0.164465,60803.0,60802.0,0.0938]
[1727903769704,0.164461,60805.0,60802.0,0.0938]
[1727903769935,0.001,60803.0,60802.0,0.0958]
[1727903770164,0.18249578,60803.0,60802.0,0.0958]
[1727903770438,0.18249578,60803.0,60802.0,0.333968]
[1727903770439,0.01703078,60803.0,60802.0,0.333968]
[1727903770698,0.01703078,60803.0,60802.0,0.356968]
[1727903770942,0.01703078,60803.0,60802.0,0.358968]
[1727903771183,0.01703078,60803.0,60802.0,0.359786]
[1727903772671,0.01703078,60803.0,60802.0,0.357786]
[1727903772929,0.01703078,60803.0,60802.0,0.359786]
[1727903772930,0.001,60803.0,60802.0,0.359786]
[1727903773431,0.001,60803.0,60802.0,0.357786]
[1727903773432,0.01700772,60803.0,60802.0,0.357786]
[1727903773667,0.01800772,60803.0,60802.0,0.359786]
[1727903774138,0.01800772,60803.0,60802.0,0.357786]
[1727903774139,0.01700772,60803.0,60802.0,0.357786]
[1727903774382,0.01700772,60803.0,60802.0,0.686716]
[1727903774886,0.01800772,60803.0,60802.0,0.688716]
[1727903776213,0.01700772,60803.0,60802.0,0.686716]
[1727903776735,0.01800772,60803.0,60802.0,0.688716]
[1727903776944,0.01700772,60803.0,60802.0,0.686716]
[1727903777348,0.01700772,60803.0,60802.0,0.688716]
[1727903777349,0.01800772,60803.0,60802.0,0.688716]
[1727903777567,0.02578409,60808.0,60807.0,0.358354]
[1727903777794,0.02578409,60808.0,60807.0,0.687264]
[1727903778425,0.164437,60814.0,60810.0,0.164446]
[1727903778612,0.166068,60816.0,60811.0,0.493333]
[1727903778812,0.164434,60815.0,60811.0,0.493333]
[1727903779018,0.001636,60816.0,60811.0,0.657774]
[1727903779222,0.001636,60816.0,60812.0,0.328879]
[1727903779445,0.001636,60816.0,60813.0,0.32888]
[1727903779856,0.001636,60816.0,60815.0,0.164433]
[1727903780021,0.001636,60816.0,60815.0,0.493303]
[1727903780227,0.001636,60816.0,60815.0,0.516303]
[1727903780421,0.002636,60816.0,60815.0,0.516303]
[1727903780873,0.001636,60816.0,60815.0,0.516303]
[1727903781111,0.001636,60816.0,60815.0,0.520303]
[1727903781112,0.002636,60816.0,60815.0,0.520303]
[1727903781297,0.002636,60816.0,60815.0,0.597503]
[1727903781854,0.002636,60816.0,60815.0,0.33287]
[1727903781855,0.167066,60816.0,60815.0,0.33287]
[1727903782061,0.002636,60816.0,60815.0,0.33287]
[1727903782261,0.002636,60816.0,60815.0,0.497303]
[1727903782468,0.002636,60816.0,60815.0,0.32887]
[1727903782469,0.001636,60816.0,60815.0,0.32887]
[1727903782649,0.002636,60816.0,60815.0,0.41247]
[1727903782847,0.002636,60816.0,60815.0,0.667903]
[1727903783258,0.002636,60816.0,60815.0,0.690903]
[1727903789678,0.01972213,60816.0,60815.0,0.690903]
[1727903790593,0.01972213,60816.0,60815.0,0.85608971]
[1727903790809,0.002636,60816.0,60815.0,0.85608971]
[1727903791525,0.001636,60816.0,60815.0,0.85308971]
[1727903791962,0.24623062,60824.0,60816.0,0.002]
[1727903792193,0.24623062,60824.0,60823.0,0.362211]
[1727903792409,0.0257774,60828.0,60823.0,0.362211]
[1727903792410,0.0257774,60828.0,60827.0,0.2687]
[1727903792625,0.04284406,60828.0,60827.0,0.5975]
[1727903792844,0.001634,60831.0,60830.0,0.169392]
[1727903793064,0.001634,60831.0,60830.0,0.96676871]
[1727903794596,0.001634,60831.0,60830.0,0.96876871]
[1727903796420,0.001634,60831.0,60830.0,0.96676871]
[1727903797584,0.02576814,60849.0,60845.0,0.164352]
[1727903797792,0.02576814,60849.0,60845.0,0.594252]
[1727903797793,0.26328734,60846.0,60845.0,0.594252]
[1727903798223,0.01705672,60846.0,60845.0,0.594252]
[1727903798439,0.41055862,60854.0,60849.0,0.164339]
[1727903798663,0.41055862,60854.0,60850.0,0.32868]
[1727903798859,0.001636,60856.0,60851.0,0.164335]
[1727903798860,0.01705079,60853.0,60851.0,0.164335]
[1727903799107,0.01705079,60852.0,60848.0,0.023]
[1727903799321,0.01705079,60852.0,60846.0,0.023]
[1727903799322,0.01705079,60851.0,60849.0,0.35168]
[1727903799542,0.18138879,60850.0,60849.0,0.32868]
[1727903801531,0.1814115,60850.0,60849.0,0.32868]
[1727903801952,0.1814115,60850.0,60849.0,0.33968]
[1727903803719,0.0170735,60850.0,60849.0,0.504021]
[1727903803926,0.0170735,60850.0,60849.0,0.33968]
[1727903804798,0.01703802,60850.0,60849.0,0.33968]
[1727903805242,0.18137602,60850.0,60849.0,0.33968]
[1727903805711,0.01703802,60850.0,60849.0,0.33968]
[1727903806342,0.18137602,60850.0,60849.0,0.33968]
[1727903807449,0.18301002,60850.0,60849.0,0.33968]
[1727903809231,0.01867202,60850.0,60849.0,0.33968]
[1727903809490,0.01867202,60850.0,60849.0,0.504021]
[1727903809707,0.01867202,60850.0,60849.0,0.527021]
[1727903809924,0.01867202,60850.0,60849.0,0.606121]
[1727903811246,0.01869057,60850.0,60849.0,0.606121]
[1727903811680,0.01869298,60850.0,60849.0,0.606121]
[1727903811890,0.01869202,60850.0,60849.0,0.606121]
[1727903816584,0.04445631,60850.0,60849.0,0.606121]
[1727903817697,0.02739829,60850.0,60849.0,0.606121]
[1727903817913,0.04451317,60850.0,60849.0,0.606121]
[1727903820749,0.04451317,60850.0,60849.0,0.527021]
[1727903821461,0.04469094,60850.0,60849.0,0.527021]
[1727903821680,0.04469094,60850.0,60849.0,0.36268]
[1727903822199,0.04469094,60850.0,60849.0,0.33968]
[1727903822200,0.20902894,60850.0,60849.0,0.33968]
[1727903823197,0.20907929,60850.0,60849.0,0.33968]
[1727903823690,0.20907929,60850.0,60849.0,0.32868]
[1727903823927,0.21007929,60850.0,60849.0,0.33568]
[1727903824643,0.20907929,60850.0,60849.0,0.32868]
[1727903824883,0.20907929,60850.0,60849.0,0.33268]
[1727903827079,0.19173629,60850.0,60849.0,0.33268]
[1727903827304,0.20906538,60850.0,60849.0,0.32868]
[1727903827518,0.20906538,60850.0,60849.0,0.32968]
[1727903828158,0.20906538,60850.0,60849.0,0.32868]
[1727903828395,0.20906538,60850.0,60849.0,0.33068]
[1727903829808,0.20906538,60850.0,60849.0,0.32868]
[1727903829809,0.04472738,60850.0,60849.0,0.32868]
[1727903830050,0.19173629,60850.0,60849.0,0.33168]
[1727903830260,0.04466826,60850.0,60849.0,0.33168]
[1727903830473,0.04466826,60850.0,60849.0,0.32868]
[1727903830687,0.20900626,60850.0,60849.0,0.32868]
[1727903830919,0.20900626,60850.0,60849.0,0.33268]
[1727903831605,0.04466826,60850.0,60849.0,0.33268]
[1727903831857,0.04466826,60850.0,60849.0,0.76225162]
[1727903832076,0.04466826,60850.0,60849.0,0.516021]
[1727903832544,0.04466826,60850.0,60849.0,0.76225162]
[1727903832767,0.04466826,60850.0,60849.0,0.690821]
[1727903832987,0.002634,60850.0,60849.0,0.698821]
[1727903833205,0.01990994,60850.0,60849.0,0.698821]
[1727903833446,0.01890994,60850.0,60849.0,0.690821]
[1727903833699,0.01890994,60850.0,60849.0,0.692821]
[1727903833912,0.01990994,60850.0,60849.0,0.704821]
[1727903835740,0.01990994,60850.0,60849.0,1.11623833]
[1727903835998,0.01990994,60850.0,60849.0,0.86800771]
[1727903836229,0.01962014,60850.0,60849.0,0.86800771]
[1727903838658,0.002634,60850.0,60849.0,0.86800771]
[1727903840208,0.001636,60856.0,60855.0,0.164325]
[1727903840429,0.001636,60856.0,60855.0,0.62381171]
[1727903840655,0.001636,60856.0,60855.0,0.95746171]
[1727903842271,0.001636,60856.0,60855.0,0.97146171]
[1727903842507,0.001636,60856.0,60855.0,0.96446171]
[1727903842726,0.001636,60856.0,60855.0,0.95546171]
[1727903842945,0.001636,60856.0,60855.0,0.95746171]
[1727903843163,0.001636,60856.0,60855.0,0.97146171]
[1727903843593,0.001636,60856.0,60855.0,0.95746171]
[1727903843832,0.001636,60856.0,60855.0,0.97146171]
[1727903845150,0.02575573,60867.0,60866.0,0.187295]
[1727903845361,0.24623062,60869.0,60868.0,0.187289]
[1727903845584,0.24623062,60869.0,60868.0,0.67905571]
[1727903845812,0.001636,60871.0,60870.0,0.164284]
[1727903846033,0.001636,60871.0,60870.0,0.515854]
[1727903846708,0.01863127,60871.0,60870.0,0.515854]
[1727903849045,0.01863127,60871.0,60870.0,0.529854]
[1727903849312,0.001636,60871.0,60870.0,0.529854]
[1727903852200,0.01862865,60871.0,60870.0,0.529854]
[1727903852411,0.01862789,60871.0,60870.0,0.529854]
[1727903853121,0.18290889,60871.0,60870.0,0.34257]
[1727903853993,0.18290889,60871.0,60870.0,0.32857]
[1727903854426,0.18290889,60871.0,60870.0,0.33457]
[1727903855730,0.18290889,60871.0,60870.0,0.32857]
[1727903856212,0.18290889,60871.0,60870.0,0.33057]
[1727903856999,0.18290889,60871.0,60870.0,0.32857]
[1727903857794,0.26340889,60871.0,60870.0,0.33557]
[1727903858118,0.5131572,60871.0,60870.0,0.23557]
[1727903858362,0.48884899,60871.0,60870.0,0.18867]
[1727903858599,2.30365164,60871.0,60870.0,0.18867]
[1727903858848,2.30365164,60871.0,60870.0,0.07167]
[1727903858849,2.38556264,60871.0,60870.0,0.07167]
[1727903859160,1.53524141,60871.0,60870.0,0.08067]
[1727903859343,1.53525838,60871.0,60870.0,0.08067]
[1727903859581,1.32279938,60871.0,60870.0,0.08067]
[1727903859824,1.32283835,60871.0,60870.0,0.08067]
[1727903860055,1.32283835,60871.0,60870.0,0.07167]
[1727903860294,1.32383835,60871.0,60870.0,0.07267]
[1727903860624,1.30297235,60871.0,60870.0,0.07267]
[1727903860908,0.94715635,60871.0,60870.0,0.07267]
[1727903861152,0.94515635,60871.0,60870.0,0.07267]
[1727903861398,0.94715635,60871.0,60870.0,0.07267]
[1727903861693,0.94715635,60871.0,60856.0,0.000817]
[1727903861936,0.3154553,60857.0,60856.0,0.000817]
[1727903862215,0.28336683,60857.0,60856.0,0.000817]
[1727903862469,0.85636083,60857.0,60856.0,0.000817]
[1727903862765,0.98845963,60857.0,60856.0,0.000817]
[1727903863067,0.98845963,60857.0,60856.0,0.001817]
[1727903863283,0.71784163,60857.0,60856.0,0.001817]
[1727903863583,0.71784163,60857.0,60856.0,0.000817]
[1727903863843,0.88402834,60857.0,60856.0,0.001817]
[1727903864069,0.83053833,60857.0,60856.0,0.001817]
[1727903864295,0.80593932,60857.0,60856.0,0.001817]
[1727903864522,0.64275261,60857.0,60856.0,0.001817]